fUSD/lending_fUSD_20260607
["ID","MTS","AMOUNT","RATE_DAILY","PERIOD"]
[424392790,1780826308000,-500.0,0.00038642,120]
[424392798,1780826309000,-500.0,0.00038642,120]
[424392797,1780826309000,-292.05822936,0.00038642,120]
[424392799,1780826309000,-500.0,0.00038642,120]
[424392801,1780826309000,-500.0,0.00038642,120]
[424392800,1780826309000,-500.0,0.00038642,120]
[424392803,1780826309000,-500.0,0.00038642,120]
[424392802,1780826309000,-500.0,0.00038642,120]
[424392804,1780826309000,-500.0,0.00038642,120]
[424392805,1780826309000,-500.0,0.00038642,120]
[424392806,1780826309000,-500.0,0.00038642,120]
[424392813,1780826309000,-500.0,0.00038642,120]
[424392814,1780826309000,-238.44938563,0.00038642,120]
[424392812,1780826309000,-500.0,0.00038642,120]
[424392807,1780826309000,-500.0,0.00038642,120]
[424392810,1780826309000,-500.0,0.00038642,120]
[424392809,1780826309000,-500.0,0.00038642,120]
[424392808,1780826309000,-500.0,0.00038642,120]
[424392811,1780826309000,-500.0,0.00038642,120]
[424392821,1780826310000,-241.09459083,0.00038642,120]
[424392816,1780826310000,-500.0,0.00038642,120]
[424392817,1780826310000,-500.0,0.00038642,120]
[424392818,1780826310000,-500.0,0.00038642,120]
[424392820,1780826310000,-500.0,0.00038642,120]
[424392819,1780826310000,-500.0,0.00038642,120]
[424392822,1780826310000,-500.0,0.00038642,120]
[424392815,1780826310000,-500.0,0.00038642,120]
[424392823,1780826310000,-500.0,0.00038642,120]
[424392826,1780826310000,-500.0,0.00038642,120]
[424392825,1780826310000,-500.0,0.00038642,120]
[424392828,1780826310000,-500.0,0.00038642,120]
[424392827,1780826310000,-501.61607378,0.00038642,120]
[424392829,1780826310000,-500.0,0.00038642,120]
[424392831,1780826310000,-500.0,0.00038642,120]
[424392830,1780826310000,-500.0,0.00038642,120]
[424392833,1780826310000,-500.0,0.00038642,120]
[424392832,1780826310000,-500.0,0.00038642,120]
[424392824,1780826310000,-500.0,0.00038642,120]
[424392841,1780826311000,-500.0,0.00038642,120]
[424392839,1780826311000,-500.0,0.00038642,120]
[424392838,1780826311000,-502.3725222,0.00038642,120]
[424392840,1780826311000,-500.0,0.00038642,120]
[424392837,1780826311000,-500.0,0.00038642,120]
[424392835,1780826311000,-500.0,0.00038642,120]
[424392834,1780826311000,-500.0,0.00038642,120]
[424392836,1780826311000,-500.0,0.00038642,120]
[424392842,1780826311000,-343.3664569,0.00038642,120]
[424392844,1780826311000,-500.0,0.00038642,120]
[424392843,1780826311000,-500.0,0.00038642,120]
[424392852,1780826311000,-3729.73,0.00038642,120]
[424392850,1780826311000,-3729.73,0.00038642,120]
[424392849,1780826311000,-500.0,0.00038642,120]
[424392851,1780826311000,-3729.73,0.00038642,120]
[424392848,1780826311000,-500.0,0.00038642,120]
[424392845,1780826311000,-500.0,0.00038642,120]
[424392846,1780826311000,-372.3718698,0.00038642,120]
[424392847,1780826311000,-500.0,0.00038642,120]
[424392859,1780826312000,-3729.73,0.00038642,120]
[424392854,1780826312000,-3729.73,0.00038642,120]
[424392853,1780826312000,-3729.73,0.00038642,120]
[424392855,1780826312000,-3729.73,0.00038642,120]
[424392856,1780826312000,-3729.73,0.00038642,120]
[424392857,1780826312000,-3729.73,0.00038642,120]
[424392858,1780826312000,-3729.73,0.00038642,120]
[424392860,1780826312000,-3729.73,0.00038642,120]
[424392861,1780826312000,-3729.73,0.00038642,120]
[424392862,1780826312000,-3729.73,0.00038642,120]
[424392868,1780826312000,-3729.73,0.00038642,120]
[424392869,1780826312000,-3729.73,0.00038642,120]
[424392867,1780826312000,-3729.73,0.00038642,120]
[424392870,1780826312000,-3729.73,0.00038642,120]
[424392864,1780826312000,-3729.73,0.00038642,120]
[424392865,1780826312000,-3729.73,0.00038642,120]
[424392863,1780826312000,-3729.73,0.00038642,120]
[424392866,1780826312000,-3729.73,0.00038642,120]
[424392878,1780826313000,-450.3456119,0.00038642,120]
[424392871,1780826313000,-3729.73,0.00038642,120]
[424392872,1780826313000,-3729.73,0.00038642,120]
[424392874,1780826313000,-202.662545,0.00038642,120]
[424392873,1780826313000,-3729.76388809,0.00038642,120]
[424392876,1780826313000,-176.34712594,0.00038642,120]
[424392875,1780826313000,-176.34712595,0.00038642,120]
[424392877,1780826313000,-225.35634374,0.00038642,120]
[424392879,1780826313000,-181.9043965,0.00038642,120]
[424392888,1780826313000,-500.0,0.00038642,120]
[424392889,1780826313000,-246.0,0.00038642,120]
[424392887,1780826313000,-224.18001155,0.00038642,120]
[424392886,1780826313000,-500.0,0.00038642,120]
[424392885,1780826313000,-350.65747841,0.00038642,120]
[424392880,1780826313000,-162.88364768,0.00038642,120]
[424392883,1780826313000,-6004.12157094,0.00038642,120]
[424392881,1780826313000,-530.28816506,0.00038642,120]
[424392882,1780826313000,-315.27717786,0.00038642,120]
[424392884,1780826313000,-331.44224297,0.00038642,120]
[424392897,1780826314000,-239.66583509,0.00038642,120]
[424392890,1780826314000,-396.02015874,0.00038642,120]
[424392891,1780826314000,-240.44935219,0.00038642,120]
[424392893,1780826314000,-222.43573297,0.00038642,120]
[424392892,1780826314000,-158.08664747,0.00038642,120]
[424392895,1780826314000,-305.74753587,0.00038642,120]
[424392894,1780826314000,-221.61052958,0.00038642,120]
[424392896,1780826314000,-360.35127644,0.00038642,120]
[424392898,1780826314000,-232.33699279,0.00038642,120]
[424392902,1780826314000,-529.55998278,0.00038642,120]
[424392901,1780826314000,-290.56372814,0.00038642,120]
[424392900,1780826314000,-442.04264371,0.00038642,120]
[424392903,1780826314000,-242.71839224,0.00038642,120]
[424392904,1780826314000,-500.0,0.00038642,120]
[424392905,1780826314000,-347.91832666,0.00038642,120]
[424392907,1780826314000,-364.14595236,0.00038642,120]
[424392906,1780826314000,-541.6138664,0.00038642,120]
[424392908,1780826314000,-307.34546751,0.00038642,120]
[424392899,1780826314000,-500.0,0.00038642,120]
[424392913,1780826315000,-228.3496453,0.00038642,120]
[424392914,1780826315000,-319.3,0.00038642,120]
[424392912,1780826315000,-500.0,0.00038642,120]
[424392915,1780826315000,-279.04808287,0.00038642,120]
[424392910,1780826315000,-500.0,0.00038642,120]
[424392909,1780826315000,-199.976,0.00038642,120]
[424392911,1780826315000,-188.25435894,0.00038642,120]
[424392916,1780826315000,-500.0,0.00038642,120]
[424392917,1780826315000,-529.66430426,0.00038642,120]
[424392926,1780826315000,-191.66661127,0.00038642,120]
[424392925,1780826315000,-355.580879,0.00038642,120]
[424392924,1780826315000,-221.34530396,0.00038642,120]
[424392923,1780826315000,-593.97616608,0.00038642,120]
[424392918,1780826315000,-163.98200874,0.00038642,120]
[424392921,1780826315000,-409.6294849,0.00038642,120]
[424392920,1780826315000,-232.73294153,0.00038642,120]
[424392919,1780826315000,-236.3171861,0.00038642,120]
[424392922,1780826315000,-328.31464982,0.00038642,120]
[424392935,1780826316000,-433.13981,0.00038642,120]
[424392927,1780826316000,-347.39241931,0.00038642,120]
[424392929,1780826316000,-509.49,0.00038642,120]
[424392928,1780826316000,-352.66404105,0.00038642,120]
[424392930,1780826316000,-465.46,0.00038642,120]
[424392931,1780826316000,-331.69734285,0.00038642,120]
[424392933,1780826316000,-331.69734285,0.00038642,120]
[424392932,1780826316000,-331.69734285,0.00038642,120]
[424392934,1780826316000,-331.69734285,0.00038642,120]
[424392938,1780826316000,-155.43544079,0.00038642,120]
[424392937,1780826316000,-569.28343328,0.00038642,120]
[424392940,1780826316000,-554.83058981,0.00038642,120]
[424392939,1780826316000,-500.0,0.00038642,120]
[424392942,1780826316000,-280.07629228,0.00038642,120]
[424392941,1780826316000,-559.38025044,0.00038642,120]
[424392943,1780826316000,-641.90916356,0.00038642,120]
[424392944,1780826316000,-547.29231919,0.00038642,120]
[424392945,1780826316000,-171.33507533,0.00038642,120]
[424392936,1780826316000,-211.12627782,0.00038642,120]
[424392951,1780826317000,-152.89021085,0.00038642,120]
[424392952,1780826317000,-185.36475795,0.00038642,120]
[424392949,1780826317000,-514.89582983,0.00038642,120]
[424392956,1780826317000,-231.9255459,0.00038642,120]
[424392948,1780826317000,-395.1543101,0.00038642,120]
[424392947,1780826317000,-500.0,0.00038642,120]
[424392946,1780826317000,-264.19201516,0.00038642,120]
[424392950,1780826317000,-156.94612725,0.00038642,120]
[424392953,1780826317000,-601.50199513,0.00038642,120]
[424392958,1780826317000,-510.11610948,0.00038642,120]
[424392955,1780826317000,-220.0,0.00038642,120]
[424392957,1780826317000,-603.16272974,0.00038642,120]
[424392964,1780826317000,-500.0,0.00038642,120]
[424392959,1780826317000,-500.0,0.00038642,120]
[424392960,1780826317000,-485.01672717,0.00038642,120]
[424392961,1780826317000,-181.24854402,0.00038642,120]
[424392962,1780826317000,-445.92956662,0.00038642,120]
[424392963,1780826317000,-500.0,0.00038642,120]
[424392954,1780826317000,-444.3181188,0.00038642,120]
[424392970,1780826318000,-490.92583077,0.00038642,120]
[424392969,1780826318000,-500.0,0.00038642,120]
[424392965,1780826318000,-500.0,0.00038642,120]
[424392967,1780826318000,-224.90497686,0.00038642,120]
[424392966,1780826318000,-224.52532793,0.00038642,120]
[424392971,1780826318000,-307.46770973,0.00038642,120]
[424392968,1780826318000,-230.01709266,0.00038642,120]
[424392972,1780826318000,-252.85590889,0.00038642,120]
[424392976,1780826318000,-238.48355066,0.00038642,120]
[424392973,1780826318000,-500.0,0.00038642,120]
[424392975,1780826318000,-448.72013519,0.00038642,120]
[424392977,1780826318000,-500.0,0.00038642,120]
[424392978,1780826318000,-496.0478408,0.00038642,120]
[424392979,1780826318000,-385.66655915,0.00038642,120]
[424392980,1780826318000,-602.8633903,0.00038642,120]
[424392981,1780826318000,-150.63777725,0.00038642,120]
[424392974,1780826318000,-154.17642096,0.00038642,120]
[424392986,1780826319000,-250.29439297,0.00038642,120]
[424392987,1780826319000,-637.42111407,0.00038642,120]
[424392985,1780826319000,-500.0,0.00038642,120]
[424392988,1780826319000,-500.0,0.00038642,120]
[424392983,1780826319000,-174.0643398,0.00038642,120]
[424392982,1780826319000,-273.31793109,0.00038642,120]
[424392984,1780826319000,-282.91596616,0.00038642,120]
[424392990,1780826319000,-459.19569114,0.00038642,120]
[424392993,1780826319000,-500.0,0.00038642,120]
[424392991,1780826319000,-392.07611277,0.00038642,120]
[424392999,1780826319000,-500.0,0.00038642,120]
[424392997,1780826319000,-165.09348479,0.00038642,120]
[424392996,1780826319000,-500.0,0.00038642,120]
[424392989,1780826319000,-153.77486838,0.00038642,120]
[424392995,1780826319000,-293.89729725,0.00038642,120]
[424392992,1780826319000,-294.23899383,0.00038642,120]
[424392998,1780826319000,-500.0,0.00038642,120]
[424392994,1780826319000,-291.0,0.00038642,120]
[424393005,1780826320000,-524.23492032,0.00038642,120]
[424393000,1780826320000,-425.64718312,0.00038642,120]
[424393002,1780826320000,-500.0,0.00038642,120]
[424393001,1780826320000,-500.0,0.00038642,120]
[424393003,1780826320000,-363.6853445,0.00038642,120]
[424393004,1780826320000,-240.01572761,0.00038642,120]
[424393006,1780826320000,-500.0,0.00038642,120]
[424393007,1780826320000,-500.0,0.00038642,120]
[424393008,1780826320000,-500.0,0.00038642,120]
[424393009,1780826320000,-253.9238009,0.00038642,120]
[424393017,1780826320000,-244.88421633,0.00038642,120]
[424393015,1780826320000,-212.94964635,0.00038642,120]
[424393014,1780826320000,-425.88969212,0.00038642,120]
[424393016,1780826320000,-500.0,0.00038642,120]
[424393012,1780826320000,-325.26330415,0.00038642,120]
[424393011,1780826320000,-557.17673942,0.00038642,120]
[424393010,1780826320000,-500.0,0.00038642,120]
[424393013,1780826320000,-218.06782613,0.00038642,120]
[424393024,1780826321000,-187.25444495,0.00038642,120]
[424393019,1780826321000,-500.0,0.00038642,120]
[424393018,1780826321000,-500.0,0.00038642,120]
[424393020,1780826321000,-164.28100953,0.00038642,120]
[424393021,1780826321000,-625.55208734,0.00038642,120]
[424393022,1780826321000,-500.0,0.00038642,120]
[424393023,1780826321000,-366.13819565,0.00038642,120]
[424393025,1780826321000,-500.0,0.00038642,120]
[424393026,1780826321000,-217.76579785,0.00038642,120]
[424393027,1780826321000,-500.0,0.00038642,120]
[424393035,1780826321000,-332.92724076,0.00038642,120]
[424393033,1780826321000,-532.89621422,0.00038642,120]
[424393032,1780826321000,-500.0,0.00038642,120]
[424393034,1780826321000,-500.0,0.00038642,120]
[424393031,1780826321000,-603.46326304,0.00038642,120]
[424393029,1780826321000,-219.24647122,0.00038642,120]
[424393028,1780826321000,-577.63338468,0.00038642,120]
[424393030,1780826321000,-280.59308494,0.00038642,120]
[424393042,1780826322000,-332.21609052,0.00038642,120]
[424393036,1780826322000,-543.97316489,0.00038642,120]
[424393037,1780826322000,-222.50672645,0.00038642,120]
[424393038,1780826322000,-500.0,0.00038642,120]
[424393040,1780826322000,-500.0,0.00038642,120]
[424393039,1780826322000,-547.1658533,0.00038642,120]
[424393041,1780826322000,-500.0,0.00038642,120]
[424393043,1780826322000,-249.77883184,0.00038642,120]
[424393044,1780826322000,-261.3110635,0.00038642,120]
[424393045,1780826322000,-500.0,0.00038642,120]
[424393052,1780826322000,-643.5085643,0.00038642,120]
[424393050,1780826322000,-151.51136066,0.00038642,120]
[424393051,1780826322000,-245.38875022,0.00038642,120]
[424393053,1780826322000,-227.2565759,0.00038642,120]
[424393049,1780826322000,-406.74302412,0.00038642,120]
[424393047,1780826322000,-500.0,0.00038642,120]
[424393046,1780826322000,-500.0,0.00038642,120]
[424393048,1780826322000,-204.6761214,0.00038642,120]
[424393060,1780826323000,-500.0,0.00038642,120]
[424393055,1780826323000,-352.83903526,0.00038642,120]
[424393054,1780826323000,-349.79708681,0.00038642,120]
[424393057,1780826323000,-500.0,0.00038642,120]
[424393056,1780826323000,-500.0,0.00038642,120]
[424393059,1780826323000,-344.45893606,0.00038642,120]
[424393058,1780826323000,-500.0,0.00038642,120]
[424393061,1780826323000,-296.08295375,0.00038642,120]
[424393062,1780826323000,-512.2325893,0.00038642,120]
[424393066,1780826323000,-500.0,0.00038642,120]
[424393064,1780826323000,-500.0,0.00038642,120]
[424393071,1780826323000,-192.21750674,0.00038642,120]
[424393070,1780826323000,-500.0,0.00038642,120]
[424393069,1780826323000,-372.28804849,0.00038642,120]
[424393063,1780826323000,-198.59821853,0.00038642,120]
[424393067,1780826323000,-211.00008207,0.00038642,120]
[424393072,1780826323000,-500.0,0.00038642,120]
[424393065,1780826323000,-329.25549457,0.00038642,120]
[424393068,1780826323000,-500.0,0.00038642,120]
[424393073,1780826324000,-500.0,0.00038642,120]
[424393074,1780826324000,-646.95836319,0.00038642,120]
[424393075,1780826324000,-500.0,0.00038642,120]
[424393076,1780826324000,-500.0,0.00038642,120]
[424393077,1780826324000,-500.0,0.00038642,120]
[424393079,1780826324000,-522.34784744,0.00038642,120]
[424393078,1780826324000,-457.01848619,0.00038642,120]
[424393081,1780826324000,-475.65520712,0.00038642,120]
[424393082,1780826324000,-213.9915436,0.00038642,120]
[424393083,1780826324000,-245.34624483,0.00038642,120]
[424393084,1780826324000,-606.19379621,0.00038642,120]
[424393085,1780826324000,-417.46985596,0.00038642,120]
[424393086,1780826324000,-500.0,0.00038642,120]
[424393087,1780826324000,-500.0,0.00038642,120]
[424393080,1780826324000,-558.2543512,0.00038642,120]
[424393088,1780826325000,-500.0,0.00038642,120]
[424393089,1780826325000,-199.79400745,0.00038642,120]
[424393090,1780826325000,-500.0,0.00038642,120]
[424393091,1780826325000,-255.67451074,0.00038642,120]
[424393092,1780826325000,-529.87832466,0.00038642,120]
[424393093,1780826325000,-238.49196259,0.00038642,120]
[424393094,1780826325000,-500.0,0.00038642,120]
[424393095,1780826325000,-500.0,0.00038642,120]
[424393096,1780826325000,-500.0,0.00038642,120]
[424393099,1780826325000,-351.94987421,0.00038642,120]
[424393098,1780826325000,-500.0,0.00038642,120]
[424393100,1780826325000,-372.23456094,0.00038642,120]
[424393102,1780826325000,-500.0,0.00038642,120]
[424393101,1780826325000,-500.0,0.00038642,120]
[424393104,1780826325000,-500.0,0.00038642,120]
[424393103,1780826325000,-295.9767421,0.00038642,120]
[424393097,1780826325000,-256.26339352,0.00038642,120]
[424393105,1780826326000,-345.76720656,0.00038642,120]
[424393106,1780826326000,-508.78092068,0.00038642,120]
[424393107,1780826326000,-500.0,0.00038642,120]
[424393108,1780826326000,-500.0,0.00038642,120]
[424393109,1780826326000,-385.68335377,0.00038642,120]
[424393110,1780826326000,-500.0,0.00038642,120]
[424393111,1780826326000,-500.0,0.00038642,120]
[424393112,1780826326000,-537.15365417,0.00038642,120]
[424393114,1780826326000,-500.0,0.00038642,120]
[424393115,1780826326000,-500.0,0.00038642,120]
[424393116,1780826326000,-500.0,0.00038642,120]
[424393117,1780826326000,-322.18682768,0.00038642,120]
[424393119,1780826326000,-648.42532661,0.00038642,120]
[424393118,1780826326000,-500.0,0.00038642,120]
[424393120,1780826326000,-358.6594972,0.00038642,120]
[424393113,1780826326000,-500.0,0.00038642,120]
[424393121,1780826327000,-360.81905604,0.00038642,120]
[424393127,1780826327000,-500.0,0.00038642,120]
[424393124,1780826327000,-257.54059015,0.00038642,120]
[424393123,1780826327000,-207.32819106,0.00038642,120]
[424393126,1780826327000,-252.51989091,0.00038642,120]
[424393125,1780826327000,-500.0,0.00038642,120]
[424393128,1780826327000,-500.0,0.00038642,120]
[424393129,1780826327000,-193.48668681,0.00038642,120]
[424393122,1780826327000,-205.25253809,0.00038642,120]
[424393130,1780826327000,-500.0,0.00038642,120]
[424393138,1780826327000,-425.89759891,0.00038642,120]
[424393137,1780826327000,-240.67545251,0.00038642,120]
[424393136,1780826327000,-385.35444602,0.00038642,120]
[424393131,1780826327000,-583.25016825,0.00038642,120]
[424393134,1780826327000,-500.0,0.00038642,120]
[424393132,1780826327000,-318.55077253,0.00038642,120]
[424393133,1780826327000,-500.0,0.00038642,120]
[424393135,1780826327000,-217.05410828,0.00038642,120]
[424393145,1780826328000,-500.0,0.00038642,120]
[424393139,1780826328000,-500.0,0.00038642,120]
[424393140,1780826328000,-500.0,0.00038642,120]
[424393142,1780826328000,-168.29088774,0.00038642,120]
[424393141,1780826328000,-500.0,0.00038642,120]
[424393143,1780826328000,-395.6930181,0.00038642,120]
[424393144,1780826328000,-526.58940385,0.00038642,120]
[424393147,1780826328000,-627.9817391,0.00038642,120]
[424393146,1780826328000,-500.0,0.00038642,120]
[424393149,1780826328000,-611.16652843,0.00038642,120]
[424393148,1780826328000,-167.87659887,0.00038642,120]
[424393150,1780826328000,-209.10004032,0.00038642,120]
[424393152,1780826328000,-500.0,0.00038642,120]
[424393151,1780826328000,-500.0,0.00038642,120]
[424393154,1780826328000,-500.0,0.00038642,120]
[424393153,1780826328000,-500.0,0.00038642,120]
[424393155,1780826328000,-158.16722126,0.00038642,120]
[424393156,1780826329000,-500.0,0.00038642,120]
[424393158,1780826329000,-500.0,0.00038642,120]
[424393159,1780826329000,-305.43099717,0.00038642,120]
[424393161,1780826329000,-239.72323778,0.00038642,120]
[424393160,1780826329000,-500.0,0.00038642,120]
[424393162,1780826329000,-236.49140125,0.00038642,120]
[424393164,1780826329000,-221.99879625,0.00038642,120]
[424393163,1780826329000,-240.33869016,0.00038642,120]
[424393157,1780826329000,-299.78266835,0.00038642,120]
[424393166,1780826329000,-315.62656111,0.00038642,120]
[424393167,1780826329000,-336.29087235,0.00038642,120]
[424393168,1780826329000,-721.59648371,0.00038642,120]
[424393169,1780826329000,-207.62813532,0.00038642,120]
[424393170,1780826329000,-500.0,0.00038642,120]
[424393171,1780826329000,-500.0,0.00038642,120]
[424393173,1780826329000,-500.0,0.00038642,120]
[424393172,1780826329000,-220.85968203,0.00038642,120]
[424393165,1780826329000,-500.0,0.00038642,120]
[424393174,1780826330000,-500.0,0.00038642,120]
[424393175,1780826330000,-179.97348225,0.00038642,120]
[424393176,1780826330000,-500.0,0.00038642,120]
[424393178,1780826330000,-500.0,0.00038642,120]
[424393177,1780826330000,-315.14210493,0.00038642,120]
[424393179,1780826330000,-500.0,0.00038642,120]
[424393180,1780826330000,-368.1259,0.00038642,120]
[424393183,1780826330000,-500.0,0.00038642,120]
[424393182,1780826330000,-182.9654957,0.00038642,120]
[424393184,1780826330000,-219.5678118,0.00038642,120]
[424393186,1780826330000,-409.60114665,0.00038642,120]
[424393185,1780826330000,-500.0,0.00038642,120]
[424393188,1780826330000,-500.0,0.00038642,120]
[424393187,1780826330000,-307.04515719,0.00038642,120]
[424393189,1780826330000,-306.76989118,0.00038642,120]
[424393181,1780826330000,-426.69388962,0.00038642,120]
[424393196,1780826331000,-566.19927103,0.00038642,120]
[424393190,1780826331000,-167.52301661,0.00038642,120]
[424393191,1780826331000,-639.96758281,0.00038642,120]
[424393192,1780826331000,-500.0,0.00038642,120]
[424393194,1780826331000,-1455.66152788,0.00038642,120]
[424393193,1780826331000,-229.69622959,0.00038642,120]
[424393195,1780826331000,-500.0,0.00038642,120]
[424393205,1780826331000,-510.61074653,0.00038642,120]
[424393198,1780826331000,-389.64073525,0.00038642,120]
[424393199,1780826331000,-421.79370509,0.00038642,120]
[424393201,1780826331000,-306.92551677,0.00038642,120]
[424393200,1780826331000,-332.57686169,0.00038642,120]
[424393202,1780826331000,-500.0,0.00038642,120]
[424393203,1780826331000,-274.17428356,0.00038642,120]
[424393204,1780826331000,-500.0,0.00038642,120]
[424393197,1780826331000,-197.33360871,0.00038642,120]
[424393212,1780826332000,-641.88971757,0.00038642,120]
[424393206,1780826332000,-500.0,0.00038642,120]
[424393208,1780826332000,-225.3993705,0.00038642,120]
[424393207,1780826332000,-500.0,0.00038642,120]
[424393209,1780826332000,-500.0,0.00038642,120]
[424393210,1780826332000,-500.0,0.00038642,120]
[424393211,1780826332000,-500.0,0.00038642,120]
[424393213,1780826332000,-289.84862228,0.00038642,120]
[424393223,1780826332000,-500.0,0.00038642,120]
[424393214,1780826332000,-500.0,0.00038642,120]
[424393221,1780826332000,-549.94392463,0.00038642,120]
[424393222,1780826332000,-398.59827867,0.00038642,120]
[424393219,1780826332000,-350.64208761,0.00038642,120]
[424393215,1780826332000,-500.0,0.00038642,120]
[424393217,1780826332000,-500.0,0.00038642,120]
[424393218,1780826332000,-392.47627768,0.00038642,120]
[424393216,1780826332000,-576.93345089,0.00038642,120]
[424393220,1780826332000,-487.98285461,0.00038642,120]
[424393225,1780826333000,-500.0,0.00038642,120]
[424393224,1780826333000,-403.51970856,0.00038642,120]
[424393226,1780826333000,-500.0,0.00038642,120]
[424393227,1780826333000,-500.0,0.00038642,120]
[424393229,1780826333000,-184.79205372,0.00038642,120]
[424393228,1780826333000,-184.16772088,0.00038642,120]
[424393231,1780826333000,-500.0,0.00038642,120]
[424393230,1780826333000,-360.19930132,0.00038642,120]
[424393234,1780826333000,-427.06426759,0.00038642,120]
[424393235,1780826333000,-308.99850791,0.00038642,120]
[424393236,1780826333000,-188.6,0.00038642,120]
[424393237,1780826333000,-188.59,0.00038642,120]
[424393238,1780826333000,-296.48663495,0.00038642,120]
[424393239,1780826333000,-500.0,0.00038642,120]
[424393240,1780826333000,-500.0,0.00038642,120]
[424393232,1780826333000,-500.0,0.00038642,120]
[424393233,1780826333000,-500.0,0.00038642,120]
[424393246,1780826334000,-277.87476819,0.00038642,120]
[424393241,1780826334000,-500.0,0.00038642,120]
[424393243,1780826334000,-350.75260369,0.00038642,120]
[424393242,1780826334000,-155.26683535,0.00038642,120]
[424393244,1780826334000,-500.0,0.00038642,120]
[424393245,1780826334000,-153.66383878,0.00038642,120]
[424393247,1780826334000,-247.14810065,0.00038642,120]
[424393250,1780826334000,-500.0,0.00038642,120]
[424393249,1780826334000,-500.0,0.00038642,120]
[424393251,1780826334000,-340.07044197,0.00038642,120]
[424393253,1780826334000,-191.44440747,0.00038642,120]
[424393252,1780826334000,-500.0,0.00038642,120]
[424393254,1780826334000,-492.14861209,0.00038642,120]
[424393255,1780826334000,-439.24106499,0.00038642,120]
[424393248,1780826334000,-500.0,0.00038642,120]
[424393256,1780826335000,-500.0,0.00038642,120]
[424393258,1780826335000,-392.34477744,0.00038642,120]
[424393257,1780826335000,-500.0,0.00038642,120]
[424393260,1780826335000,-500.0,0.00038642,120]
[424393259,1780826335000,-234.49113381,0.00038642,120]
[424393262,1780826335000,-386.72338364,0.00038642,120]
[424393261,1780826335000,-500.0,0.00038642,120]
[424393263,1780826335000,-266.21248683,0.00038642,120]
[424393264,1780826335000,-249.6285859,0.00038642,120]
[424393266,1780826335000,-167.22402124,0.00038642,120]
[424393267,1780826335000,-229.0426436,0.00038642,120]
[424393269,1780826335000,-395.69683693,0.00038642,120]
[424393268,1780826335000,-500.0,0.00038642,120]
[424393270,1780826335000,-392.5071169,0.00038642,120]
[424393272,1780826335000,-317.21167286,0.00038642,120]
[424393271,1780826335000,-500.0,0.00038642,120]
[424393273,1780826335000,-204.75571692,0.00038642,120]
[424393265,1780826335000,-401.34681498,0.00038642,120]
[424393280,1780826336000,-262.22877221,0.00038642,120]
[424393277,1780826336000,-500.0,0.00038642,120]
[424393278,1780826336000,-500.0,0.00038642,120]
[424393279,1780826336000,-500.0,0.00038642,120]
[424393276,1780826336000,-500.0,0.00038642,120]
[424393274,1780826336000,-188.36478839,0.00038642,120]
[424393275,1780826336000,-320.41175635,0.00038642,120]
[424393282,1780826336000,-394.34280935,0.00038642,120]
[424393281,1780826336000,-178.82596403,0.00038642,120]
[424393284,1780826336000,-164.4196913,0.00038642,120]
[424393283,1780826336000,-323.48251405,0.00038642,120]
[424393290,1780826336000,-182.91485225,0.00038642,120]
[424393288,1780826336000,-461.45361924,0.00038642,120]
[424393289,1780826336000,-500.0,0.00038642,120]
[424393291,1780826336000,-373.76218615,0.00038642,120]
[424393287,1780826336000,-343.33806287,0.00038642,120]
[424393285,1780826336000,-496.20362012,0.00038642,120]
[424393292,1780826336000,-500.0,0.00038642,120]
[424393286,1780826336000,-500.0,0.00038642,120]
[424393300,1780826337000,-486.82752953,0.00038642,120]
[424393293,1780826337000,-521.71246327,0.00038642,120]
[424393294,1780826337000,-258.04865077,0.00038642,120]